[Event "Early-Titled-Tuesday-Blitz-October-24-2023"]
[Site "Chess.com"]
[Date "2023.10.24"]
[Round "2"]
[White "zajka-molotok"]
[Black "eljanov"]
[Result "0-1"]
[WhiteElo "2560"]
[BlackElo "2825"]
[TimeControl "180+1"]
[EndTime "8:17:35 PDT"]
[Termination "eljanov won on time"]

1. e4 {[%clk 0:03:00.9]} 1... c6 {[%clk 0:02:59.7]} 2. d4 {[%clk 0:02:59.5]}
2... d5 {[%clk 0:03:00.6]} 3. exd5 {[%clk 0:02:59.9]} 3... cxd5 {[%clk
0:03:00.6]} 4. Bd3 {[%clk 0:02:59.7]} 4... Nf6 {[%clk 0:03:01.2]} 5. h3 {[%clk
0:02:52.8]} 5... Nc6 {[%clk 0:02:59.2]} 6. c3 {[%clk 0:02:52.4]} 6... e5 {[%clk
0:02:59.1]} 7. dxe5 {[%clk 0:02:50.1]} 7... Nxe5 {[%clk 0:03:00]} 8. Nf3 {[%clk
0:02:46.2]} 8... Nxd3+ {[%clk 0:02:58.1]} 9. Qxd3 {[%clk 0:02:47.1]} 9... Bd6
{[%clk 0:02:57.3]} 10. O-O {[%clk 0:02:46]} 10... O-O {[%clk 0:02:57.3]} 11. Bg5
{[%clk 0:02:42.9]} 11... h6 {[%clk 0:02:57.6]} 12. Bh4 {[%clk 0:02:35.2]} 12...
g5 {[%clk 0:02:50.4]} 13. Bg3 {[%clk 0:02:34]} 13... Bxg3 {[%clk 0:02:50.1]} 14.
fxg3 {[%clk 0:02:34.1]} 14... g4 {[%clk 0:02:25.5]} 15. hxg4 {[%clk 0:02:27.1]}
15... Nxg4 {[%clk 0:02:03.3]} 16. Nbd2 {[%clk 0:02:19.9]} 16... Qb6+ {[%clk
0:02:01.8]} 17. Qd4 {[%clk 0:02:18.7]} 17... Qxd4+ {[%clk 0:01:37.7]} 18. Nxd4
{[%clk 0:02:16.7]} 18... Re8 {[%clk 0:01:34.3]} 19. Rae1 {[%clk 0:02:11.5]}
19... Bd7 {[%clk 0:01:33.6]} 20. N2f3 {[%clk 0:02:05.4]} 20... Rxe1 {[%clk
0:01:00.1]} 21. Rxe1 {[%clk 0:02:06.3]} 21... Re8 {[%clk 0:00:58.7]} 22. Kf1
{[%clk 0:01:49.4]} 22... Kf8 {[%clk 0:00:52]} 23. Rxe8+ {[%clk 0:01:47.5]} 23...
Kxe8 {[%clk 0:00:51.9]} 24. Ke2 {[%clk 0:01:46.9]} 24... Ke7 {[%clk 0:00:52]}
25. Nd2 {[%clk 0:01:24.8]} 25... Nf6 {[%clk 0:00:48.1]} 26. Ke3 {[%clk
0:01:20.6]} 26... Kd6 {[%clk 0:00:44.3]} 27. Kf4 {[%clk 0:01:14.3]} 27... Nh5+
{[%clk 0:00:43.8]} 28. Kf3 {[%clk 0:01:13.4]} 28... b6 {[%clk 0:00:36.3]} 29.
Nf1 {[%clk 0:01:09.3]} 29... Nf6 {[%clk 0:00:25.8]} 30. Kf4 {[%clk 0:01:08.6]}
30... Nh5+ {[%clk 0:00:22.5]} 31. Kf3 {[%clk 0:01:08.5]} 31... Ke5 {[%clk
0:00:22.5]} 32. Ne3 {[%clk 0:01:00.7]} 32... Nf6 {[%clk 0:00:22.4]} 33. a3
{[%clk 0:00:34.7]} 33... a5 {[%clk 0:00:22.2]} 34. Ne2 {[%clk 0:00:17.8]} 34...
h5 {[%clk 0:00:20.2]} 35. Nd4 {[%clk 0:00:16.8]} 35... Bg4+ {[%clk 0:00:20.1]}
36. Nxg4+ {[%clk 0:00:11.4]} 36... hxg4+ {[%clk 0:00:20.5]} 37. Ke3 {[%clk
0:00:11.1]} 37... Ne4 {[%clk 0:00:19.8]} 38. Nc6+ {[%clk 0:00:08.3]} 38... Kd6
{[%clk 0:00:16.5]} 39. Nd8 {[%clk 0:00:08.1]} 39... Ke7 {[%clk 0:00:10.2]} 40.
Nc6+ {[%clk 0:00:07.7]} 40... Kd6 {[%clk 0:00:09.4]} 41. Nd8 {[%clk 0:00:07.7]}
41... f6 {[%clk 0:00:08.1]} 42. Kf4 {[%clk 0:00:07.3]} 42... Nd2 {[%clk
0:00:08]} 43. Kxg4 {[%clk 0:00:06.7]} 43... Nc4 {[%clk 0:00:08.3]} 44. Kf5
{[%clk 0:00:06.1]} 44... Ke7 {[%clk 0:00:06.4]} 45. Nc6+ {[%clk 0:00:05.8]}
45... Kf7 {[%clk 0:00:06.7]} 46. b4 {[%clk 0:00:05.1]} 46... a4 {[%clk
0:00:05.5]} 47. b5 {[%clk 0:00:02.6]} 47... Nxa3 {[%clk 0:00:05.3]} 48. Nb4
{[%clk 0:00:02.7]} 48... Nxb5 {[%clk 0:00:05.1]} 49. Nxd5 {[%clk 0:00:02.5]}
49... a3 {[%clk 0:00:05.6]} 50. Nb4 {[%clk 0:00:01.1]} 50... Nxc3 {[%clk
0:00:05.9]} 0-1

[Event "Early-Titled-Tuesday-Blitz-October-24-2023"]
[Site "Chess.com"]
[Date "2023.10.24"]
[Round "2"]
[White "vaniavindy"]
[Black "Daniel_Salinas"]
[Result "1-0"]
[WhiteElo "2211"]
[BlackElo "2428"]
[TimeControl "180+1"]
[EndTime "8:17:36 PDT"]
[Termination "vaniavindy won by resignation"]

1. d4 {[%clk 0:03:00.1]} 1... Nf6 {[%clk 0:02:52.7]} 2. c4 {[%clk 0:02:58.8]}
2... e6 {[%clk 0:02:53]} 3. a3 {[%clk 0:02:58.1]} 3... d5 {[%clk 0:02:51.8]} 4.
Nc3 {[%clk 0:02:57]} 4... Be7 {[%clk 0:02:47.1]} 5. Bf4 {[%clk 0:02:54.1]} 5...
O-O {[%clk 0:02:45.1]} 6. e3 {[%clk 0:02:53.7]} 6... b6 {[%clk 0:02:41.1]} 7.
cxd5 {[%clk 0:02:49.6]} 7... exd5 {[%clk 0:02:42]} 8. Nf3 {[%clk 0:02:47.8]}
8... Bb7 {[%clk 0:02:39.1]} 9. Bd3 {[%clk 0:02:47.9]} 9... Nbd7 {[%clk
0:02:35.1]} 10. O-O {[%clk 0:02:47.4]} 10... Ne4 {[%clk 0:02:34.4]} 11. Rc1
{[%clk 0:02:39.5]} 11... a6 {[%clk 0:02:22.1]} 12. Bxc7 {[%clk 0:02:10.8]} 12...
Qe8 {[%clk 0:02:09.1]} 13. Ne5 {[%clk 0:01:36]} 13... Rc8 {[%clk 0:01:25.2]} 14.
Bxe4 {[%clk 0:00:55.5]} 14... dxe4 {[%clk 0:01:22.7]} 15. Nxd7 {[%clk
0:00:55.4]} 15... Qxd7 {[%clk 0:01:23.1]} 16. Bxb6 {[%clk 0:00:56]} 16... Bd6
{[%clk 0:01:20.8]} 17. Ne2 {[%clk 0:00:52.5]} 17... Bxh2+ {[%clk 0:00:55.7]} 18.
Kxh2 {[%clk 0:00:51.1]} 18... Qd6+ {[%clk 0:00:56.6]} 19. Kg1 {[%clk 0:00:51.3]}
19... Qxb6 {[%clk 0:00:57.5]} 20. b4 {[%clk 0:00:50.6]} 20... f5 {[%clk
0:00:37.9]} 21. Rc5 {[%clk 0:00:43.3]} 21... Rce8 {[%clk 0:00:36.8]} 22. Qb3+
{[%clk 0:00:33.5]} 22... Kh8 {[%clk 0:00:36.3]} 23. Rfc1 {[%clk 0:00:34.2]}
23... Rf6 {[%clk 0:00:28.1]} 24. d5 {[%clk 0:00:26.1]} 24... Rh6 {[%clk
0:00:26.8]} 25. Nd4 {[%clk 0:00:22.7]} 25... Rh5 {[%clk 0:00:18.8]} 26. Ne6
{[%clk 0:00:15]} 26... Qd6 {[%clk 0:00:15.3]} 27. Nf4 {[%clk 0:00:13]} 27... Rh4
{[%clk 0:00:12.7]} 28. Rc7 {[%clk 0:00:09.7]} 28... Qh6 {[%clk 0:00:08.8]} 29.
Nh3 {[%clk 0:00:05.1]} 29... Ba8 {[%clk 0:00:06.8]} 30. Qc3 {[%clk 0:00:04.5]}
30... Qg6 {[%clk 0:00:04]} 31. Kf1 {[%clk 0:00:03.9]} 31... h6 {[%clk
0:00:03.3]} 32. Rc8 {[%clk 0:00:04.2]} 32... Bxd5 {[%clk 0:00:02.6]} 33. Rxe8+
{[%clk 0:00:03.9]} 33... Qxe8 {[%clk 0:00:03.5]} 34. Qd4 {[%clk 0:00:03.6]}
34... Qb5+ {[%clk 0:00:03.2]} 35. Kg1 {[%clk 0:00:03.2]} 35... Be6 {[%clk
0:00:03]} 36. Rc5 {[%clk 0:00:03]} 36... Qe8 {[%clk 0:00:02]} 37. Re5 {[%clk
0:00:02.5]} 37... Kh7 {[%clk 0:00:01.1]} 38. Qd6 {[%clk 0:00:02.1]} 38... Qa4
{[%clk 0:00:01.3]} 39. Qxe6 {[%clk 0:00:02.2]} 39... Qd1+ {[%clk 0:00:01.6]} 40.
Kh2 {[%clk 0:00:02.7]} 40... Qg4 {[%clk 0:00:01.6]} 41. Qxf5+ {[%clk 0:00:02.5]}
41... Qxf5 {[%clk 0:00:02.2]} 42. Rxf5 {[%clk 0:00:03.4]} 42... g6 {[%clk
0:00:03.1]} 43. Rf7+ {[%clk 0:00:03.3]} 43... Kg8 {[%clk 0:00:03]} 44. Re7
{[%clk 0:00:03.8]} 1-0

[Event "Early-Titled-Tuesday-Blitz-October-24-2023"]
[Site "Chess.com"]
[Date "2023.10.24"]
[Round "2"]
[White "tarno17"]
[Black "FlemingA"]
[Result "0-1"]
[WhiteElo "2113"]
[BlackElo "2434"]
[TimeControl "180+1"]
[EndTime "8:17:36 PDT"]
[Termination "FlemingA won by checkmate"]

1. e4 {[%clk 0:03:00.9]} 1... g6 {[%clk 0:03:00]} 2. d4 {[%clk 0:02:59.5]} 2...
a6 {[%clk 0:03:00.1]} 3. f4 {[%clk 0:02:53.9]} 3... Bg7 {[%clk 0:02:59.3]} 4.
Nf3 {[%clk 0:02:54.2]} 4... c5 {[%clk 0:02:59.7]} 5. c3 {[%clk 0:02:51.1]} 5...
d5 {[%clk 0:02:57.5]} 6. e5 {[%clk 0:02:30.3]} 6... Bg4 {[%clk 0:02:54.7]} 7.
Be2 {[%clk 0:02:23.8]} 7... Nc6 {[%clk 0:02:47.7]} 8. h3 {[%clk 0:02:22.8]} 8...
Bxf3 {[%clk 0:02:47.4]} 9. Bxf3 {[%clk 0:02:23.7]} 9... h5 {[%clk 0:02:47.6]}
10. f5 {[%clk 0:02:07.6]} 10... cxd4 {[%clk 0:02:44.8]} 11. cxd4 {[%clk
0:02:07.5]} 11... e6 {[%clk 0:02:42]} 12. f6 {[%clk 0:01:29.9]} 12... Bh6 {[%clk
0:02:38.9]} 13. Nd2 {[%clk 0:01:26.8]} 13... Nxd4 {[%clk 0:02:34.8]} 14. O-O
{[%clk 0:01:15.8]} 14... Qd7 {[%clk 0:02:28]} 15. b3 {[%clk 0:00:54.8]} 15...
Be3+ {[%clk 0:02:18.1]} 16. Kh1 {[%clk 0:00:53.5]} 16... Nh6 {[%clk 0:02:19]}
17. Re1 {[%clk 0:00:41.8]} 17... Nhf5 {[%clk 0:02:15.9]} 18. Nf1 {[%clk
0:00:37.1]} 18... Bxc1 {[%clk 0:02:14.9]} 19. Rxc1 {[%clk 0:00:36.8]} 19... O-O
{[%clk 0:02:02.7]} 20. Bxh5 {[%clk 0:00:27.4]} 20... Rfc8 {[%clk 0:01:41.5]} 21.
Rxc8+ {[%clk 0:00:12.3]} 21... Rxc8 {[%clk 0:01:42.4]} 22. Bg4 {[%clk
0:00:12.9]} 22... Qc7 {[%clk 0:01:33.2]} 23. Bxf5 {[%clk 0:00:11.4]} 23... Nxf5
{[%clk 0:01:34.1]} 24. Qg4 {[%clk 0:00:11]} 24... Qc3 {[%clk 0:01:25.6]} 25. Rd1
{[%clk 0:00:06.1]} 25... Qxe5 {[%clk 0:01:20.1]} 26. h4 {[%clk 0:00:03.6]} 26...
Qxf6 {[%clk 0:01:17.6]} 27. h5 {[%clk 0:00:04]} 27... Qh4+ {[%clk 0:01:17.8]}
28. Qxh4 {[%clk 0:00:04.7]} 28... Nxh4 {[%clk 0:01:18.7]} 29. hxg6 {[%clk
0:00:05.4]} 29... Nxg6 {[%clk 0:01:19.6]} 30. g4 {[%clk 0:00:05.7]} 30... Rc2
{[%clk 0:01:19]} 31. Ne3 {[%clk 0:00:05.4]} 31... Rxa2 {[%clk 0:01:18]} 32. Rc1
{[%clk 0:00:05.5]} 32... Re2 {[%clk 0:01:12]} 33. Nf1 {[%clk 0:00:03.3]} 33...
Rb2 {[%clk 0:01:11.5]} 34. Ng3 {[%clk 0:00:03.3]} 34... Rxb3 {[%clk 0:01:11.1]}
35. Nh5 {[%clk 0:00:04.1]} 35... Kf8 {[%clk 0:00:25.2]} 36. Rc8+ {[%clk
0:00:03.3]} 36... Ke7 {[%clk 0:00:25.5]} 37. Rc7+ {[%clk 0:00:02.3]} 37... Kd6
{[%clk 0:00:25.4]} 38. Rxf7 {[%clk 0:00:02.6]} 38... Ne5 {[%clk 0:00:25.2]} 39.
Rf8 {[%clk 0:00:02.4]} 39... Nxg4 {[%clk 0:00:22.8]} 40. Ng7 {[%clk 0:00:02.1]}
40... a5 {[%clk 0:00:19.1]} 41. Ne8+ {[%clk 0:00:02.3]} 41... Ke7 {[%clk
0:00:18.8]} 42. Rh8 {[%clk 0:00:02.6]} 42... Nf6 {[%clk 0:00:18.2]} 43. Nc7
{[%clk 0:00:02.6]} 43... Kd6 {[%clk 0:00:16.9]} 44. Na8 {[%clk 0:00:02.3]} 44...
a4 {[%clk 0:00:16.6]} 45. Rd8+ {[%clk 0:00:02.9]} 45... Ke5 {[%clk 0:00:17.2]}
46. Nc7 {[%clk 0:00:02.8]} 46... a3 {[%clk 0:00:17.7]} 47. Ra8 {[%clk
0:00:01.9]} 47... b5 {[%clk 0:00:15.8]} 48. Ra5 {[%clk 0:00:01.9]} 48... b4
{[%clk 0:00:15.9]} 49. Nb5 {[%clk 0:00:02.2]} 49... Rb1+ {[%clk 0:00:14.7]} 50.
Kg2 {[%clk 0:00:01.8]} 50... Ne4 {[%clk 0:00:14.7]} 51. Nc7 {[%clk 0:00:01.8]}
51... Rb2+ {[%clk 0:00:13.3]} 52. Kf3 {[%clk 0:00:01.8]} 52... a2 {[%clk
0:00:14.2]} 53. Ra6 {[%clk 0:00:02.3]} 53... Nc5 {[%clk 0:00:13.6]} 54. Rc6
{[%clk 0:00:02.1]} 54... a1=Q {[%clk 0:00:13.8]} 55. Rxc5 {[%clk 0:00:02.6]}
55... Qf1+ {[%clk 0:00:14.4]} 56. Ke3 {[%clk 0:00:02.8]} 56... Re2+ {[%clk
0:00:14.9]} 57. Kd3 {[%clk 0:00:03.5]} 57... Qd1# {[%clk 0:00:13.9]} 0-1

[Event "Early-Titled-Tuesday-Blitz-October-24-2023"]
[Site "Chess.com"]
[Date "2023.10.24"]
[Round "2"]
[White "DumbKing75"]
[Black "Oleksandr_Bortnyk"]
[Result "0-1"]
[WhiteElo "2616"]
[BlackElo "3038"]
[TimeControl "180+1"]
[EndTime "8:17:37 PDT"]
[Termination "Oleksandr_Bortnyk won by resignation"]

1. e4 {[%clk 0:03:00.9]} 1... Nf6 {[%clk 0:02:55.1]} 2. Nc3 {[%clk 0:02:58.4]}
2... d5 {[%clk 0:02:55.2]} 3. exd5 {[%clk 0:02:55.8]} 3... Nxd5 {[%clk
0:02:56.1]} 4. Nxd5 {[%clk 0:02:47]} 4... Qxd5 {[%clk 0:02:55.6]} 5. Nf3 {[%clk
0:02:47.7]} 5... Nc6 {[%clk 0:02:53.7]} 6. Be2 {[%clk 0:02:44.7]} 6... e5 {[%clk
0:02:54.2]} 7. O-O {[%clk 0:02:43.8]} 7... e4 {[%clk 0:02:54.7]} 8. Ne1 {[%clk
0:02:39.2]} 8... Bd6 {[%clk 0:02:54.7]} 9. d3 {[%clk 0:02:33.4]} 9... O-O {[%clk
0:02:51.4]} 10. dxe4 {[%clk 0:02:29.5]} 10... Qxe4 {[%clk 0:02:52.3]} 11. Bd3
{[%clk 0:02:28.9]} 11... Qh4 {[%clk 0:02:42.7]} 12. Nf3 {[%clk 0:02:28.9]} 12...
Qh5 {[%clk 0:02:43.4]} 13. h3 {[%clk 0:02:18.3]} 13... Bxh3 {[%clk 0:02:39.9]}
14. gxh3 {[%clk 0:01:59.1]} 14... Qxh3 {[%clk 0:02:40.8]} 15. Re1 {[%clk
0:01:59.4]} 15... Rfe8 {[%clk 0:02:05.9]} 16. Rxe8+ {[%clk 0:01:05.5]} 16...
Rxe8 {[%clk 0:02:06.8]} 17. Bf1 {[%clk 0:01:06.2]} 17... Qg4+ {[%clk 0:02:02.3]}
18. Bg2 {[%clk 0:01:06.9]} 18... Re6 {[%clk 0:01:56.6]} 19. Be3 {[%clk
0:01:07.2]} 19... Rg6 {[%clk 0:01:56.5]} 20. Ne1 {[%clk 0:01:07.8]} 20... Qh4
{[%clk 0:01:52.9]} 21. Nf3 {[%clk 0:01:00.7]} 21... Qh3 {[%clk 0:01:35.6]} 22.
Ng5 {[%clk 0:00:57.3]} 22... Qh2+ {[%clk 0:01:35.7]} 23. Kf1 {[%clk 0:00:58]}
23... h6 {[%clk 0:01:21.2]} 24. Bxc6 {[%clk 0:00:55.7]} 24... bxc6 {[%clk
0:01:14.8]} 25. Nf3 {[%clk 0:00:56.1]} 25... Qh5 {[%clk 0:01:09.7]} 26. b3
{[%clk 0:00:47.5]} 26... Rf6 {[%clk 0:01:05.1]} 27. Ng1 {[%clk 0:00:40.2]} 27...
Qh1 {[%clk 0:00:58.1]} 28. Qg4 {[%clk 0:00:17.8]} 28... Rg6 {[%clk 0:00:53.7]}
29. Qc8+ {[%clk 0:00:18.4]} 29... Kh7 {[%clk 0:00:53.8]} 30. Ke2 {[%clk
0:00:19.1]} 30... Rxg1 {[%clk 0:00:50.4]} 31. Qf5+ {[%clk 0:00:19]} 31... Kg8
{[%clk 0:00:49.3]} 32. Qc8+ {[%clk 0:00:19.2]} 32... Bf8 {[%clk 0:00:49.9]} 33.
Rxg1 {[%clk 0:00:19.5]} 33... Qxg1 {[%clk 0:00:47.5]} 34. Bc5 {[%clk 0:00:20.2]}
34... Qg6 {[%clk 0:00:35.6]} 35. Qxf8+ {[%clk 0:00:20.3]} 35... Kh7 {[%clk
0:00:36.5]} 36. Kd2 {[%clk 0:00:18.9]} 36... Qf5 {[%clk 0:00:36.9]} 37. Qe7
{[%clk 0:00:18.1]} 37... h5 {[%clk 0:00:36.3]} 38. Be3 {[%clk 0:00:14.1]} 38...
f6 {[%clk 0:00:30.2]} 39. Qxc7 {[%clk 0:00:11.3]} 39... Qd5+ {[%clk 0:00:29.9]}
40. Kc1 {[%clk 0:00:10.9]} 40... a5 {[%clk 0:00:30.8]} 41. Qf4 {[%clk
0:00:10.8]} 41... Kg6 {[%clk 0:00:22.5]} 42. a4 {[%clk 0:00:08.8]} 42... Kf7
{[%clk 0:00:18]} 43. Qc7+ {[%clk 0:00:08]} 43... Kg6 {[%clk 0:00:17.7]} 44. Qg3+
{[%clk 0:00:07.4]} 44... Kf7 {[%clk 0:00:18.1]} 45. Bd2 {[%clk 0:00:08.1]} 45...
g5 {[%clk 0:00:15.6]} 46. Qc7+ {[%clk 0:00:05.8]} 46... Kg6 {[%clk 0:00:16]} 47.
Qxa5 {[%clk 0:00:06.5]} 47... h4 {[%clk 0:00:12.5]} 48. Qxd5 {[%clk 0:00:03.4]}
48... cxd5 {[%clk 0:00:13.4]} 49. Bb4 {[%clk 0:00:04]} 49... f5 {[%clk 0:00:14]}
50. f4 {[%clk 0:00:03.3]} 50... h3 {[%clk 0:00:13.5]} 51. Be1 {[%clk 0:00:02.5]}
51... h2 {[%clk 0:00:14.4]} 52. fxg5 {[%clk 0:00:02.4]} 52... h1=Q {[%clk
0:00:15.3]} 53. Kd1 {[%clk 0:00:03.3]} 0-1

[Event "Early-Titled-Tuesday-Blitz-October-24-2023"]
[Site "Chess.com"]
[Date "2023.10.24"]
[Round "2"]
[White "DopplerCharlotteDeWitte"]
[Black "Taran2004"]
[Result "1/2-1/2"]
[WhiteElo "2786"]
[BlackElo "2403"]
[TimeControl "180+1"]
[EndTime "8:17:38 PDT"]
[Termination "Game drawn - insufficient material"]

1. e4 {[%clk 0:03:00.9]} 1... c6 {[%clk 0:02:56.5]} 2. d4 {[%clk 0:03:00.7]}
2... d5 {[%clk 0:02:56.3]} 3. exd5 {[%clk 0:03:01.6]} 3... cxd5 {[%clk
0:02:56.5]} 4. Bd3 {[%clk 0:02:58.6]} 4... Nc6 {[%clk 0:02:56.5]} 5. Nf3 {[%clk
0:02:58.5]} 5... Nf6 {[%clk 0:02:56.8]} 6. Bf4 {[%clk 0:02:54.9]} 6... Bg4
{[%clk 0:02:56.7]} 7. c3 {[%clk 0:02:54.1]} 7... e6 {[%clk 0:02:56.6]} 8. Nbd2
{[%clk 0:02:53.9]} 8... Bd6 {[%clk 0:02:56.7]} 9. Bxd6 {[%clk 0:02:41.8]} 9...
Qxd6 {[%clk 0:02:57.6]} 10. h3 {[%clk 0:02:42.4]} 10... Bh5 {[%clk 0:02:56.9]}
11. O-O {[%clk 0:02:39.8]} 11... O-O {[%clk 0:02:56.5]} 12. Re1 {[%clk
0:02:40.3]} 12... a6 {[%clk 0:02:53.5]} 13. a4 {[%clk 0:02:40.3]} 13... Rac8
{[%clk 0:02:51.1]} 14. a5 {[%clk 0:02:37.5]} 14... Bg6 {[%clk 0:02:42.9]} 15.
Bxg6 {[%clk 0:02:36.9]} 15... hxg6 {[%clk 0:02:43.8]} 16. Re3 {[%clk 0:02:09.4]}
16... Qc7 {[%clk 0:02:40.2]} 17. b4 {[%clk 0:02:07.7]} 17... Ne7 {[%clk
0:02:34.7]} 18. Nb3 {[%clk 0:02:05.9]} 18... Nf5 {[%clk 0:02:31.8]} 19. Rd3
{[%clk 0:02:06.1]} 19... Ne4 {[%clk 0:02:30.9]} 20. Nc5 {[%clk 0:02:06.4]} 20...
Nfd6 {[%clk 0:02:22.5]} 21. Ne5 {[%clk 0:02:02]} 21... Nb5 {[%clk 0:02:19]} 22.
Qb3 {[%clk 0:01:48.6]} 22... Kh7 {[%clk 0:02:03.3]} 23. Re3 {[%clk 0:01:40.7]}
23... Rfe8 {[%clk 0:01:47.2]} 24. h4 {[%clk 0:01:36.3]} 24... f6 {[%clk
0:01:45.8]} 25. Nf3 {[%clk 0:01:30.9]} 25... Qf4 {[%clk 0:01:41.1]} 26. Rae1
{[%clk 0:01:27.7]} 26... f5 {[%clk 0:01:32.1]} 27. g3 {[%clk 0:01:16.4]} 27...
Qg4 {[%clk 0:01:25.4]} 28. Kg2 {[%clk 0:00:56.3]} 28... f4 {[%clk 0:01:16.4]}
29. Rxe4 {[%clk 0:00:50]} 29... dxe4 {[%clk 0:01:14.4]} 30. Rxe4 {[%clk
0:00:50.9]} 30... Rf8 {[%clk 0:00:51.5]} 31. Qd1 {[%clk 0:00:19.7]} 31... Nxc3
{[%clk 0:00:48.8]} 32. Qd3 {[%clk 0:00:15.7]} 32... Rxc5 {[%clk 0:00:44.1]} 33.
bxc5 {[%clk 0:00:13.4]} 33... Nxe4 {[%clk 0:00:44.3]} 34. Qxe4 {[%clk
0:00:14.3]} 34... Qf5 {[%clk 0:00:44.6]} 35. Ng5+ {[%clk 0:00:13.8]} 35... Kg8
{[%clk 0:00:40.8]} 36. Qxe6+ {[%clk 0:00:11.9]} 36... Qxe6 {[%clk 0:00:40.3]}
37. Nxe6 {[%clk 0:00:12.8]} 37... f3+ {[%clk 0:00:40.5]} 38. Kh3 {[%clk
0:00:12.7]} 38... Re8 {[%clk 0:00:38.4]} 39. d5 {[%clk 0:00:12.5]} 39... Kf7
{[%clk 0:00:38.4]} 40. Kg4 {[%clk 0:00:11.9]} 40... Kf6 {[%clk 0:00:37.1]} 41.
Kxf3 {[%clk 0:00:10.9]} 41... Ke5 {[%clk 0:00:37.5]} 42. Kg4 {[%clk 0:00:07]}
42... Re7 {[%clk 0:00:35.7]} 43. Nf4 {[%clk 0:00:02.7]} 43... Kd4 {[%clk
0:00:34.9]} 44. d6 {[%clk 0:00:02.3]} 44... Rd7 {[%clk 0:00:32.2]} 45. Kg5
{[%clk 0:00:01.1]} 45... Kxc5 {[%clk 0:00:31.5]} 46. Kxg6 {[%clk 0:00:01.7]}
46... Kxd6 {[%clk 0:00:31.7]} 47. h5 {[%clk 0:00:02.4]} 47... Kc5 {[%clk
0:00:31.1]} 48. g4 {[%clk 0:00:03]} 48... b6 {[%clk 0:00:31.1]} 49. axb6 {[%clk
0:00:02.9]} 49... Kxb6 {[%clk 0:00:31.6]} 50. g5 {[%clk 0:00:03]} 50... a5
{[%clk 0:00:31.3]} 51. h6 {[%clk 0:00:02]} 51... gxh6 {[%clk 0:00:31.3]} 52.
gxh6 {[%clk 0:00:02.9]} 52... a4 {[%clk 0:00:31.4]} 53. h7 {[%clk 0:00:03.5]}
53... Rxh7 {[%clk 0:00:19.6]} 54. Kxh7 {[%clk 0:00:04.4]} 54... a3 {[%clk
0:00:20.2]} 55. Nd5+ {[%clk 0:00:04.8]} 55... Kc5 {[%clk 0:00:20.4]} 56. Nc3
{[%clk 0:00:05.7]} 56... Kc4 {[%clk 0:00:20.7]} 57. Na2 {[%clk 0:00:05.6]} 57...
Kb3 {[%clk 0:00:21]} 58. f4 {[%clk 0:00:04.1]} 58... Kxa2 {[%clk 0:00:20.8]} 59.
f5 {[%clk 0:00:05]} 59... Kb3 {[%clk 0:00:18.7]} 60. f6 {[%clk 0:00:05.9]} 60...
a2 {[%clk 0:00:19.3]} 61. f7 {[%clk 0:00:06]} 61... a1=Q {[%clk 0:00:19.8]} 62.
f8=Q {[%clk 0:00:06.7]} 62... Qh1+ {[%clk 0:00:19.9]} 63. Qh6 {[%clk 0:00:06.6]}
63... Qxh6+ {[%clk 0:00:19.4]} 64. Kxh6 {[%clk 0:00:07.5]} 1/2-1/2

[Event "Early-Titled-Tuesday-Blitz-October-24-2023"]
[Site "Chess.com"]
[Date "2023.10.24"]
[Round "2"]
[White "scarabee43"]
[Black "N4700000"]
[Result "1-0"]
[WhiteElo "2803"]
[BlackElo "2534"]
[TimeControl "180+1"]
[EndTime "8:17:39 PDT"]
[Termination "scarabee43 won on time"]

1. d4 {[%clk 0:03:00.9]} 1... Nf6 {[%clk 0:02:59.6]} 2. Nf3 {[%clk 0:03:01.1]}
2... g6 {[%clk 0:02:59.3]} 3. c4 {[%clk 0:03:01.3]} 3... Bg7 {[%clk 0:02:59]} 4.
Nc3 {[%clk 0:02:58.7]} 4... O-O {[%clk 0:02:58.8]} 5. Bg5 {[%clk 0:02:59.4]}
5... d6 {[%clk 0:02:54.5]} 6. e3 {[%clk 0:02:59.2]} 6... h6 {[%clk 0:02:50.5]}
7. Bh4 {[%clk 0:02:57.7]} 7... c5 {[%clk 0:02:50.1]} 8. d5 {[%clk 0:02:48.2]}
8... e6 {[%clk 0:02:12.1]} 9. Be2 {[%clk 0:02:26.7]} 9... exd5 {[%clk
0:02:09.7]} 10. cxd5 {[%clk 0:02:09.8]} 10... g5 {[%clk 0:02:08]} 11. Bg3 {[%clk
0:02:09.9]} 11... Nh5 {[%clk 0:02:07.7]} 12. Qc2 {[%clk 0:02:07.8]} 12... Nxg3
{[%clk 0:01:48]} 13. hxg3 {[%clk 0:02:08]} 13... Nd7 {[%clk 0:01:44.6]} 14. Ne4
{[%clk 0:02:00.8]} 14... Nf6 {[%clk 0:01:15.8]} 15. Nfxg5 {[%clk 0:01:50.8]}
15... Bf5 {[%clk 0:01:01]} 16. Nxf6+ {[%clk 0:01:22.9]} 16... Qxf6 {[%clk
0:00:59.6]} 17. Ne4 {[%clk 0:00:56.3]} 17... Qxb2 {[%clk 0:00:49.1]} 18. Qxb2
{[%clk 0:00:56.6]} 18... Bxb2 {[%clk 0:00:48.1]} 19. Nxd6 {[%clk 0:00:53.2]}
19... Bxa1 {[%clk 0:00:22.3]} 20. Nxf5 {[%clk 0:00:52.7]} 20... Rfd8 {[%clk
0:00:17.3]} 21. Nxh6+ {[%clk 0:00:47.5]} 21... Kf8 {[%clk 0:00:16.2]} 22. e4
{[%clk 0:00:46.4]} 22... Bc3+ {[%clk 0:00:15.7]} 23. Kd1 {[%clk 0:00:45.8]}
23... b5 {[%clk 0:00:15.1]} 24. Kc2 {[%clk 0:00:40.8]} 24... b4 {[%clk
0:00:14.5]} 25. Nf5 {[%clk 0:00:38.9]} 25... a5 {[%clk 0:00:12.6]} 26. Bc4
{[%clk 0:00:37.7]} 26... a4 {[%clk 0:00:12.4]} 27. f4 {[%clk 0:00:33]} 27...
Rab8 {[%clk 0:00:10.6]} 28. e5 {[%clk 0:00:32.7]} 28... Kg8 {[%clk 0:00:09.6]}
29. d6 {[%clk 0:00:30.7]} 29... Rb7 {[%clk 0:00:08.5]} 30. Bd5 {[%clk
0:00:27.3]} 30... Ra7 {[%clk 0:00:08.2]} 31. Ne7+ {[%clk 0:00:26.5]} 31... Kg7
{[%clk 0:00:07.1]} 32. Nc6 {[%clk 0:00:26.6]} 32... Raa8 {[%clk 0:00:06.8]} 33.
Nxd8 {[%clk 0:00:26.5]} 33... Rxd8 {[%clk 0:00:07.7]} 34. Bc6 {[%clk 0:00:26.2]}
34... a3 {[%clk 0:00:07.1]} 35. Bd5 {[%clk 0:00:25.8]} 35... Bd4 {[%clk
0:00:06.9]} 36. Kd3 {[%clk 0:00:25.4]} 36... Rb8 {[%clk 0:00:06.7]} 37. Kc2
{[%clk 0:00:19.8]} 37... Rc8 {[%clk 0:00:05.8]} 38. d7 {[%clk 0:00:18.6]} 38...
Rd8 {[%clk 0:00:05.7]} 39. e6 {[%clk 0:00:19.3]} 39... fxe6 {[%clk 0:00:05.5]}
40. Bxe6 {[%clk 0:00:20]} 40... Kf6 {[%clk 0:00:05.4]} 41. f5 {[%clk 0:00:20.7]}
41... c4 {[%clk 0:00:04.8]} 42. Bxc4 {[%clk 0:00:18.6]} 42... Rxd7 {[%clk
0:00:05.2]} 43. Rh6+ {[%clk 0:00:17.1]} 43... Kg5 {[%clk 0:00:04.6]} 44. Rc6
{[%clk 0:00:13.7]} 44... Re7 {[%clk 0:00:03.3]} 45. Be6 {[%clk 0:00:13.9]} 45...
Bc3 {[%clk 0:00:02.9]} 46. Kb3 {[%clk 0:00:14]} 46... Re8 {[%clk 0:00:02]} 47.
Rc4 {[%clk 0:00:13.3]} 47... Rd8 {[%clk 0:00:02]} 48. Rxc3 {[%clk 0:00:08.4]}
48... bxc3 {[%clk 0:00:01.5]} 49. Kxc3 {[%clk 0:00:09.1]} 49... Rb8 {[%clk
0:00:01.6]} 50. Kd4 {[%clk 0:00:07.8]} 50... Rb2 {[%clk 0:00:01.7]} 51. g4
{[%clk 0:00:05.7]} 1-0